[Event "*** Titled Tuesday Blitz"]
[Site "Chess.com"]
[Date "2021.03.02"]
[Round "4"]
[White "mortngabriel"]
[Black "Chesspirate_Channel"]
[Result "0-1"]
[WhiteElo "2472"]
[BlackElo "2343"]
[TimeControl "180+1"]
[EndTime "10:39:15 PST"]
[Termination "Chesspirate_Channel won on time"]

1. d4 {[%clk 0:03:00.9]} 1... d5 {[%clk 0:02:56.5]} 2. Nf3 {[%clk 0:02:55.2]}
2... Nc6 {[%clk 0:02:51.6]} 3. c4 {[%clk 0:02:45.1]} 3... e5 {[%clk 0:02:50.4]}
4. cxd5 {[%clk 0:02:16.6]} 4... Qxd5 {[%clk 0:02:49.1]} 5. Nc3 {[%clk
0:02:11.4]} 5... Bb4 {[%clk 0:02:49.1]} 6. a3 {[%clk 0:01:47]} 6... Bxc3+ {[%clk
0:02:36]} 7. bxc3 {[%clk 0:01:47.9]} 7... e4 {[%clk 0:02:35.1]} 8. Nd2 {[%clk
0:01:47.6]} 8... Nf6 {[%clk 0:02:28.8]} 9. e3 {[%clk 0:01:47.7]} 9... Qg5 {[%clk
0:02:25.4]} 10. Qc2 {[%clk 0:01:38.1]} 10... Bf5 {[%clk 0:02:19]} 11. a4 {[%clk
0:01:15.3]} 11... O-O {[%clk 0:02:18.3]} 12. Ba3 {[%clk 0:01:15.7]} 12... Rfe8
{[%clk 0:02:18.6]} 13. Rb1 {[%clk 0:01:09.6]} 13... Rab8 {[%clk 0:02:15.2]} 14.
g3 {[%clk 0:01:10.5]} 14... Ng4 {[%clk 0:02:10.2]} 15. Be2 {[%clk 0:00:55.1]}
15... Nxe3 {[%clk 0:02:07.8]} 16. fxe3 {[%clk 0:00:50.1]} 16... Qxe3 {[%clk
0:02:08.7]} 17. Nc4 {[%clk 0:00:35.5]} 17... Qd3 {[%clk 0:01:58.8]} 18. Bxd3
{[%clk 0:00:24.1]} 18... exd3+ {[%clk 0:01:59.7]} 19. Kf2 {[%clk 0:00:17.8]}
19... dxc2 {[%clk 0:01:59.1]} 20. Rbe1 {[%clk 0:00:18.2]} 20... Bd3 {[%clk
0:01:36.9]} 21. Ne3 {[%clk 0:00:13]} 21... Na5 {[%clk 0:01:28.8]} 22. Bc1 {[%clk
0:00:11.2]} 22... Nc4 {[%clk 0:01:27.7]} 23. Nxc4 {[%clk 0:00:10.6]} 23... Bxc4
{[%clk 0:01:28.6]} 24. Rxe8+ {[%clk 0:00:10.6]} 24... Rxe8 {[%clk 0:01:28]} 25.
Re1 {[%clk 0:00:11.5]} 25... Rxe1 {[%clk 0:01:05.7]} 26. Kxe1 {[%clk 0:00:12.4]}
26... a5 {[%clk 0:01:05.1]} 27. Bf4 {[%clk 0:00:06.5]} 27... c6 {[%clk 0:00:51]}
28. Kd2 {[%clk 0:00:06.5]} 28... Bb3 {[%clk 0:00:51]} 29. Bc7 {[%clk 0:00:06.9]}
29... Bxa4 {[%clk 0:00:51.1]} 30. Bxa5 {[%clk 0:00:07.5]} 30... b5 {[%clk
0:00:41.7]} 31. h4 {[%clk 0:00:06.2]} 31... f6 {[%clk 0:00:41.6]} 32. Bc7 {[%clk
0:00:05.3]} 32... h5 {[%clk 0:00:39.6]} 33. Bf4 {[%clk 0:00:02.6]} 33... Kf7
{[%clk 0:00:38.3]} 34. Ke3 {[%clk 0:00:01.5]} 34... c1=Q+ {[%clk 0:00:33.8]} 0-1

[Event "*** Titled Tuesday Blitz"]
[Site "Chess.com"]
[Date "2021.03.02"]
[Round "4"]
[White "marvinguevara"]
[Black "davigator"]
[Result "0-1"]
[WhiteElo "2121"]
[BlackElo "2397"]
[TimeControl "180+1"]
[EndTime "10:39:16 PST"]
[Termination "davigator won on time"]

1. e4 {[%clk 0:03:00.9]} 1... c5 {[%clk 0:02:58.7]} 2. d4 {[%clk 0:03:00.9]}
2... cxd4 {[%clk 0:02:57.8]} 3. c3 {[%clk 0:03:01.8]} 3... Nf6 {[%clk
0:02:57.4]} 4. e5 {[%clk 0:03:01.3]} 4... Nd5 {[%clk 0:02:57.7]} 5. Bc4 {[%clk
0:03:01.8]} 5... Nb6 {[%clk 0:02:55.3]} 6. Bb3 {[%clk 0:03:00.3]} 6... d5 {[%clk
0:02:55.2]} 7. exd6 {[%clk 0:02:55.8]} 7... Qxd6 {[%clk 0:02:54.5]} 8. Nf3
{[%clk 0:02:56]} 8... Nc6 {[%clk 0:02:54.3]} 9. O-O {[%clk 0:02:54.2]} 9... e6
{[%clk 0:02:51.8]} 10. cxd4 {[%clk 0:02:39.5]} 10... Be7 {[%clk 0:02:51.1]} 11.
Nc3 {[%clk 0:02:38]} 11... O-O {[%clk 0:02:50.9]} 12. Ne4 {[%clk 0:02:23.5]}
12... Qd8 {[%clk 0:02:49]} 13. Bg5 {[%clk 0:02:17]} 13... Nb4 {[%clk 0:02:46.7]}
14. a3 {[%clk 0:02:01.6]} 14... N4d5 {[%clk 0:02:45.5]} 15. Qd3 {[%clk
0:01:57.3]} 15... Bd7 {[%clk 0:02:39.5]} 16. Bc2 {[%clk 0:01:26]} 16... f5
{[%clk 0:02:37.6]} 17. Bxe7 {[%clk 0:01:23.2]} 17... Qxe7 {[%clk 0:02:34.7]} 18.
Nc5 {[%clk 0:01:19.6]} 18... Bc8 {[%clk 0:02:34.2]} 19. Rfe1 {[%clk 0:01:16.8]}
19... Qd6 {[%clk 0:02:33.3]} 20. Ne5 {[%clk 0:01:08.5]} 20... Nf6 {[%clk
0:02:27]} 21. Rad1 {[%clk 0:01:03.5]} 21... Nbd5 {[%clk 0:02:26.7]} 22. Ba4
{[%clk 0:00:50.8]} 22... Nb6 {[%clk 0:02:20.6]} 23. Bb3 {[%clk 0:00:47.5]} 23...
Nbd5 {[%clk 0:02:20.6]} 24. Ba4 {[%clk 0:00:44]} 24... b6 {[%clk 0:02:19]} 25.
Na6 {[%clk 0:00:42.3]} 25... Bb7 {[%clk 0:02:16]} 26. Bb3 {[%clk 0:00:36.6]}
26... Rac8 {[%clk 0:02:06.3]} 27. f3 {[%clk 0:00:32.1]} 27... Rfe8 {[%clk
0:01:59.8]} 28. Nc4 {[%clk 0:00:28.4]} 28... Qd7 {[%clk 0:01:46.2]} 29. Ne5
{[%clk 0:00:25.2]} 29... Qe7 {[%clk 0:01:40.3]} 30. Rc1 {[%clk 0:00:24.7]} 30...
Nf4 {[%clk 0:01:36.8]} 31. Qf1 {[%clk 0:00:23.5]} 31... N6d5 {[%clk 0:01:30.9]}
32. Nb4 {[%clk 0:00:09.7]} 32... Nxb4 {[%clk 0:01:27.2]} 33. axb4 {[%clk
0:00:09.5]} 33... Nd5 {[%clk 0:01:26.6]} 34. b5 {[%clk 0:00:06.4]} 34... Qb4
{[%clk 0:01:21.7]} 35. Bc2 {[%clk 0:00:02.3]} 35... Qxb2 {[%clk 0:01:15.1]} 36.
Kh1 {[%clk 0:00:03.2]} 36... Rxc2 {[%clk 0:01:12.3]} 37. Rxc2 {[%clk 0:00:03.2]}
37... Qxc2 {[%clk 0:01:12.3]} 38. Rc1 {[%clk 0:00:03.1]} 38... Qd2 {[%clk
0:01:06.8]} 39. Qg1 {[%clk 0:00:02.7]} 39... Qe3 {[%clk 0:00:58.9]} 40. Nc4
{[%clk 0:00:02.2]} 40... Qxg1+ {[%clk 0:00:57.4]} 41. Kxg1 {[%clk 0:00:03.1]}
41... Rc8 {[%clk 0:00:56.5]} 42. Kf2 {[%clk 0:00:03.2]} 42... Nf4 {[%clk
0:00:54]} 43. g3 {[%clk 0:00:02.5]} 43... Nd3+ {[%clk 0:00:53.9]} 0-1

[Event "*** Titled Tuesday Blitz"]
[Site "Chess.com"]
[Date "2021.03.02"]
[Round "4"]
[White "ParvizGasimov"]
[Black "Kapibara_Warri0r"]
[Result "0-1"]
[WhiteElo "2396"]
[BlackElo "2227"]
[TimeControl "180+1"]
[EndTime "10:39:18 PST"]
[Termination "Kapibara_Warri0r won on time"]

1. e4 {[%clk 0:03:00.9]} 1... c5 {[%clk 0:02:58.5]} 2. Nf3 {[%clk 0:03:00.5]}
2... d6 {[%clk 0:02:57.9]} 3. d4 {[%clk 0:03:00.9]} 3... cxd4 {[%clk 0:02:58.8]}
4. Nxd4 {[%clk 0:03:01.6]} 4... Nf6 {[%clk 0:02:53.5]} 5. Nc3 {[%clk 0:03:00.8]}
5... a6 {[%clk 0:02:52]} 6. Be3 {[%clk 0:03:00.3]} 6... e5 {[%clk 0:02:51.7]} 7.
Nb3 {[%clk 0:03:00.3]} 7... Be7 {[%clk 0:02:48.9]} 8. f3 {[%clk 0:03:00.4]} 8...
Be6 {[%clk 0:02:46.3]} 9. Qd2 {[%clk 0:03:00.8]} 9... h5 {[%clk 0:02:46.5]} 10.
Nd5 {[%clk 0:02:59.3]} 10... Bxd5 {[%clk 0:02:46]} 11. exd5 {[%clk 0:02:59.4]}
11... Nbd7 {[%clk 0:02:46.5]} 12. Be2 {[%clk 0:02:55.5]} 12... Qc7 {[%clk
0:02:44.2]} 13. O-O-O {[%clk 0:02:48.5]} 13... a5 {[%clk 0:02:34.7]} 14. a4
{[%clk 0:02:42.9]} 14... Bd8 {[%clk 0:01:59.7]} 15. Bb5 {[%clk 0:02:40]} 15...
Rc8 {[%clk 0:01:53.2]} 16. Kb1 {[%clk 0:02:21.7]} 16... O-O {[%clk 0:01:38.7]}
17. Rhg1 {[%clk 0:02:05.1]} 17... Nb6 {[%clk 0:01:13.7]} 18. g4 {[%clk
0:01:32.5]} 18... h4 {[%clk 0:01:13]} 19. Bxb6 {[%clk 0:00:31.4]} 19... Qxb6
{[%clk 0:01:13.9]} 20. g5 {[%clk 0:00:30.9]} 20... Nh5 {[%clk 0:01:13.5]} 21. g6
{[%clk 0:00:30]} 21... Nf4 {[%clk 0:01:01.6]} 22. Bd7 {[%clk 0:00:18.1]} 22...
Rc7 {[%clk 0:00:54.6]} 23. gxf7+ {[%clk 0:00:18]} 23... Rxf7 {[%clk 0:00:55.5]}
24. Be6 {[%clk 0:00:18]} 24... Nxe6 {[%clk 0:00:56]} 25. dxe6 {[%clk 0:00:18.9]}
25... Rf6 {[%clk 0:00:47.3]} 26. e7 {[%clk 0:00:12.5]} 26... Rxe7 {[%clk
0:00:43.4]} 27. Qd5+ {[%clk 0:00:11.4]} 27... Ref7 {[%clk 0:00:40]} 28. Rg4
{[%clk 0:00:06.3]} 28... Rxf3 {[%clk 0:00:32.9]} 29. Rdg1 {[%clk 0:00:03.1]}
29... Kf8 {[%clk 0:00:23.1]} 30. Rxg7 {[%clk 0:00:02.9]} 30... Rf1+ {[%clk
0:00:22.8]} 0-1

[Event "*** Titled Tuesday Blitz"]
[Site "Chess.com"]
[Date "2021.03.02"]
[Round "4"]
[White "HrvojeZagreb"]
[Black "GasconJR"]
[Result "1-0"]
[WhiteElo "2272"]
[BlackElo "2445"]
[TimeControl "180+1"]
[EndTime "10:39:19 PST"]
[Termination "HrvojeZagreb won on time"]

1. d4 {[%clk 0:03:00.9]} 1... Nf6 {[%clk 0:02:58.9]} 2. Bf4 {[%clk 0:03:00.2]}
2... g6 {[%clk 0:02:55.5]} 3. Nc3 {[%clk 0:02:59.8]} 3... d5 {[%clk 0:02:53.5]}
4. e3 {[%clk 0:02:59.9]} 4... Bg7 {[%clk 0:02:48.8]} 5. h4 {[%clk 0:02:59.8]}
5... h5 {[%clk 0:02:49.1]} 6. Nf3 {[%clk 0:02:58.5]} 6... Bg4 {[%clk 0:02:45.7]}
7. Qd2 {[%clk 0:02:58.7]} 7... Bxf3 {[%clk 0:02:42.3]} 8. gxf3 {[%clk
0:02:59.6]} 8... c6 {[%clk 0:02:35.5]} 9. O-O-O {[%clk 0:02:58.2]} 9... Nbd7
{[%clk 0:02:34.8]} 10. e4 {[%clk 0:02:58]} 10... e6 {[%clk 0:01:49.3]} 11. Kb1
{[%clk 0:02:26.2]} 11... b5 {[%clk 0:01:45.8]} 12. exd5 {[%clk 0:02:20.3]} 12...
exd5 {[%clk 0:01:42.4]} 13. Re1+ {[%clk 0:02:16.9]} 13... Kf8 {[%clk 0:01:42]}
14. Bh3 {[%clk 0:01:44.2]} 14... Nb6 {[%clk 0:01:37.8]} 15. Be5 {[%clk
0:01:32.5]} 15... Nc4 {[%clk 0:01:26.1]} 16. Qf4 {[%clk 0:01:30.5]} 16... Ne8
{[%clk 0:00:44.4]} 17. Bxg7+ {[%clk 0:01:17.3]} 17... Nxg7 {[%clk 0:00:43.9]}
18. Re2 {[%clk 0:01:14]} 18... Qd6 {[%clk 0:00:33.5]} 19. Qg5 {[%clk 0:01:00.3]}
19... Re8 {[%clk 0:00:27.9]} 20. Rhe1 {[%clk 0:00:48.6]} 20... Qb4 {[%clk
0:00:25]} 21. Nd1 {[%clk 0:00:32.8]} 21... Qxe1 {[%clk 0:00:12.3]} 22. Rxe1
{[%clk 0:00:33.7]} 22... Rxe1 {[%clk 0:00:12.3]} 23. Kc1 {[%clk 0:00:21.9]}
23... Ne8 {[%clk 0:00:11.1]} 24. b3 {[%clk 0:00:21.7]} 24... Ncd6 {[%clk
0:00:10.7]} 25. Qd2 {[%clk 0:00:19.8]} 25... Re7 {[%clk 0:00:09.7]} 26. Qb4
{[%clk 0:00:19.7]} 26... Kg7 {[%clk 0:00:09.1]} 27. Ne3 {[%clk 0:00:18.9]} 27...
a5 {[%clk 0:00:05.5]} 28. Qc5 {[%clk 0:00:18.5]} 28... Kf8 {[%clk 0:00:02.4]}
29. Qxc6 {[%clk 0:00:18.3]} 29... f6 {[%clk 0:00:01.2]} 30. Nxd5 {[%clk
0:00:17.7]} 1-0

[Event "*** Titled Tuesday Blitz"]
[Site "Chess.com"]
[Date "2021.03.02"]
[Round "4"]
[White "platy3"]
[Black "VitaRasik"]
[Result "1-0"]
[WhiteElo "2829"]
[BlackElo "2540"]
[TimeControl "180+1"]
[EndTime "10:39:20 PST"]
[Termination "platy3 won on time"]

1. e4 {[%clk 0:03:00.9]} 1... d6 {[%clk 0:02:59.1]} 2. d4 {[%clk 0:03:00.3]}
2... g6 {[%clk 0:02:59.3]} 3. Nc3 {[%clk 0:03:01.2]} 3... Bg7 {[%clk 0:02:59]}
4. Be3 {[%clk 0:02:58.7]} 4... Nf6 {[%clk 0:02:58.5]} 5. f3 {[%clk 0:02:58.8]}
5... c6 {[%clk 0:02:58]} 6. Qd2 {[%clk 0:02:50.2]} 6... b5 {[%clk 0:02:57.5]} 7.
O-O-O {[%clk 0:02:49.5]} 7... Qa5 {[%clk 0:02:55.4]} 8. Kb1 {[%clk 0:02:49]}
8... h5 {[%clk 0:02:54.3]} 9. e5 {[%clk 0:02:44.5]} 9... Nfd7 {[%clk 0:02:16]}
10. exd6 {[%clk 0:02:43.3]} 10... exd6 {[%clk 0:02:16.1]} 11. Ne4 {[%clk
0:02:44]} 11... Qxd2 {[%clk 0:02:04.4]} 12. Nxd6+ {[%clk 0:02:41.8]} 12... Ke7
{[%clk 0:02:00.4]} 13. Nxc8+ {[%clk 0:02:42.1]} 13... Rxc8 {[%clk 0:02:00.2]}
14. Rxd2 {[%clk 0:02:43]} 14... Nb6 {[%clk 0:01:58.5]} 15. g3 {[%clk 0:02:36.5]}
15... N8d7 {[%clk 0:01:57.6]} 16. Bf2 {[%clk 0:02:32.5]} 16... Nf6 {[%clk
0:01:56.6]} 17. Ne2 {[%clk 0:02:28.8]} 17... Nfd5 {[%clk 0:01:50.5]} 18. Nc1
{[%clk 0:02:27.1]} 18... Kf8 {[%clk 0:01:48]} 19. f4 {[%clk 0:02:16.9]} 19...
Re8 {[%clk 0:01:46.1]} 20. Be2 {[%clk 0:02:06.6]} 20... Rad8 {[%clk 0:01:44]}
21. Rhd1 {[%clk 0:01:59.7]} 21... Nc4 {[%clk 0:01:42]} 22. Bxc4 {[%clk
0:01:58.2]} 22... bxc4 {[%clk 0:01:42.1]} 23. c3 {[%clk 0:01:52.4]} 23... h4
{[%clk 0:01:27]} 24. Kc2 {[%clk 0:01:49.6]} 24... hxg3 {[%clk 0:01:26.5]} 25.
hxg3 {[%clk 0:01:50.5]} 25... Ne3+ {[%clk 0:01:18.2]} 26. Bxe3 {[%clk
0:01:50.4]} 26... Rxe3 {[%clk 0:01:18.2]} 27. Rg1 {[%clk 0:01:47.4]} 27... Rde8
{[%clk 0:01:18.4]} 28. b3 {[%clk 0:01:46.9]} 28... cxb3+ {[%clk 0:01:12.6]} 29.
Nxb3 {[%clk 0:01:47.5]} 29... Rf3 {[%clk 0:01:05.4]} 30. Nc5 {[%clk 0:01:16.3]}
30... Ree3 {[%clk 0:01:04.3]} 31. Rd3 {[%clk 0:01:16.5]} 31... Rf2+ {[%clk
0:00:59.7]} 32. Kb3 {[%clk 0:01:16.6]} 32... Ree2 {[%clk 0:00:59.7]} 33. a4
{[%clk 0:01:17]} 33... Kg8 {[%clk 0:00:45.9]} 34. Kc4 {[%clk 0:01:15.2]} 34...
Bf8 {[%clk 0:00:45.8]} 35. Rb1 {[%clk 0:01:12.8]} 35... Rb2 {[%clk 0:00:37.1]}
36. Rxb2 {[%clk 0:01:11.3]} 36... Rxb2 {[%clk 0:00:37.2]} 37. Re3 {[%clk
0:01:12.2]} 37... Ra2 {[%clk 0:00:37.1]} 38. Re8 {[%clk 0:01:10.4]} 38... Kg7
{[%clk 0:00:36.1]} 39. Rc8 {[%clk 0:01:07.1]} 39... Bxc5 {[%clk 0:00:34.2]} 40.
Kxc5 {[%clk 0:01:08]} 40... Rxa4 {[%clk 0:00:33.6]} 41. Rxc6 {[%clk 0:01:08.2]}
41... Kh6 {[%clk 0:00:28.6]} 42. Rc7 {[%clk 0:01:06.2]} 42... f5 {[%clk
0:00:28]} 43. d5 {[%clk 0:01:05.8]} 43... Ra3 {[%clk 0:00:23.6]} 44. Kb4 {[%clk
0:01:01.8]} 44... Ra1 {[%clk 0:00:23.3]} 45. Rc4 {[%clk 0:00:57.5]} 45... Rd1
{[%clk 0:00:14.2]} 46. Kc5 {[%clk 0:00:57.5]} 46... Kh5 {[%clk 0:00:12]} 47. Rd4
{[%clk 0:00:56.9]} 1-0

[Event "*** Titled Tuesday Blitz"]
[Site "Chess.com"]
[Date "2021.03.02"]
[Round "4"]
[White "Sjakkerntobi"]
[Black "campomania3"]
[Result "1-0"]
[WhiteElo "2320"]
[BlackElo "2156"]
[TimeControl "180+1"]
[EndTime "10:39:20 PST"]
[Termination "Sjakkerntobi won on time"]

1. e4 {[%clk 0:03:00.9]} 1... d5 {[%clk 0:02:58.3]} 2. exd5 {[%clk 0:02:58.4]}
2... Nf6 {[%clk 0:02:58.4]} 3. Nf3 {[%clk 0:02:59.3]} 3... Nxd5 {[%clk
0:02:58.3]} 4. d4 {[%clk 0:02:59.2]} 4... g6 {[%clk 0:02:58.4]} 5. c4 {[%clk
0:02:58.8]} 5... Nb6 {[%clk 0:02:57.9]} 6. Nc3 {[%clk 0:02:59.7]} 6... Bg7
{[%clk 0:02:58]} 7. Be3 {[%clk 0:02:57.9]} 7... O-O {[%clk 0:02:57.7]} 8. Bd3
{[%clk 0:02:57.3]} 8... Nc6 {[%clk 0:02:41.8]} 9. h3 {[%clk 0:02:54.5]} 9...
Nxd4 {[%clk 0:02:37]} 10. Nxd4 {[%clk 0:01:58.1]} 10... Bxd4 {[%clk 0:02:35.5]}
11. Bxd4 {[%clk 0:01:59]} 11... Qxd4 {[%clk 0:02:34.6]} 12. O-O {[%clk
0:01:59.9]} 12... Rd8 {[%clk 0:02:19.9]} 13. Be2 {[%clk 0:01:57.1]} 13... c5
{[%clk 0:01:50]} 14. Qc2 {[%clk 0:01:51]} 14... Bf5 {[%clk 0:01:47.3]} 15. Qc1
{[%clk 0:01:46]} 15... Qd2 {[%clk 0:01:38.9]} 16. Rd1 {[%clk 0:01:43.7]} 16...
Qxc1 {[%clk 0:01:28.9]} 17. Raxc1 {[%clk 0:01:44.6]} 17... Kf8 {[%clk
0:01:17.7]} 18. b3 {[%clk 0:01:34.4]} 18... Rd7 {[%clk 0:00:44.2]} 19. Bf3
{[%clk 0:01:22.9]} 19... Rad8 {[%clk 0:00:41.6]} 20. Bxb7 {[%clk 0:01:19.7]}
20... Rxd1+ {[%clk 0:00:40]} 21. Rxd1 {[%clk 0:01:20.6]} 21... Rxd1+ {[%clk
0:00:39.8]} 22. Nxd1 {[%clk 0:01:21.5]} 22... e5 {[%clk 0:00:37.2]} 23. Nc3
{[%clk 0:01:20]} 23... Ke7 {[%clk 0:00:35]} 24. Kf1 {[%clk 0:01:19.1]} 24... h6
{[%clk 0:00:27.3]} 25. Ke2 {[%clk 0:01:18.1]} 25... g5 {[%clk 0:00:27.1]} 26.
Be4 {[%clk 0:01:11.9]} 26... Be6 {[%clk 0:00:25.1]} 27. g4 {[%clk 0:01:09]}
27... a5 {[%clk 0:00:15.8]} 28. Kd3 {[%clk 0:01:03.6]} 28... Nc8 {[%clk
0:00:15.2]} 29. Bd5 {[%clk 0:01:01.7]} 29... Bd7 {[%clk 0:00:13.9]} 30. Ne4
{[%clk 0:01:01.5]} 30... Nb6 {[%clk 0:00:09.8]} 31. Nxc5 {[%clk 0:00:58]} 31...
Kd6 {[%clk 0:00:09.5]} 32. Ne4+ {[%clk 0:00:54.3]} 32... Ke7 {[%clk 0:00:09.6]}
33. Nc3 {[%clk 0:00:53.3]} 33... f5 {[%clk 0:00:08.8]} 34. f3 {[%clk 0:00:50.4]}
34... e4+ {[%clk 0:00:07.9]} 35. fxe4 {[%clk 0:00:51.3]} 35... fxg4 {[%clk
0:00:07.5]} 36. hxg4 {[%clk 0:00:52.2]} 36... Bxg4 {[%clk 0:00:07.1]} 37. e5
{[%clk 0:00:52.7]} 37... Nd7 {[%clk 0:00:06.5]} 38. Ke4 {[%clk 0:00:52.1]} 38...
Nc5+ {[%clk 0:00:05.6]} 39. Kd4 {[%clk 0:00:51.8]} 39... Ne6+ {[%clk 0:00:04.9]}
40. Bxe6 {[%clk 0:00:51.7]} 40... Bxe6 {[%clk 0:00:03.7]} 41. Nd5+ {[%clk
0:00:52.6]} 41... Kd7 {[%clk 0:00:02]} 42. a3 {[%clk 0:00:50.1]} 42... g4 {[%clk
0:00:01.7]} 43. Nf6+ {[%clk 0:00:47.4]} 1-0

[Event "*** Titled Tuesday Blitz"]
[Site "Chess.com"]
[Date "2021.03.02"]
[Round "4"]
[White "slavenok"]
[Black "sergeikim"]
[Result "1-0"]
[WhiteElo "2725"]
[BlackElo "2518"]
[TimeControl "180+1"]
[EndTime "10:39:21 PST"]
[Termination "slavenok won on time"]

1. e4 {[%clk 0:03:00.9]} 1... e5 {[%clk 0:02:59.6]} 2. d4 {[%clk 0:03:01.1]}
2... exd4 {[%clk 0:02:58.8]} 3. Nf3 {[%clk 0:03:01.7]} 3... Nc6 {[%clk
0:02:57.7]} 4. Bc4 {[%clk 0:03:01.7]} 4... Nf6 {[%clk 0:02:56.8]} 5. Qe2 {[%clk
0:03:00.8]} 5... d6 {[%clk 0:02:39]} 6. h3 {[%clk 0:03:00.5]} 6... Be7 {[%clk
0:02:38]} 7. O-O {[%clk 0:03:00]} 7... O-O {[%clk 0:02:37.7]} 8. Rd1 {[%clk
0:02:58.3]} 8... Re8 {[%clk 0:02:32.6]} 9. Nxd4 {[%clk 0:02:55.1]} 9... Bf8
{[%clk 0:02:28.3]} 10. Nxc6 {[%clk 0:02:52.7]} 10... bxc6 {[%clk 0:02:27.8]} 11.
Nc3 {[%clk 0:02:52.5]} 11... h6 {[%clk 0:02:20.6]} 12. Bf4 {[%clk 0:02:50.4]}
12... Rb8 {[%clk 0:02:12.4]} 13. Bb3 {[%clk 0:02:50.6]} 13... Nd7 {[%clk
0:02:06.3]} 14. Be3 {[%clk 0:02:48.3]} 14... a5 {[%clk 0:02:00.2]} 15. f3 {[%clk
0:02:45.4]} 15... Qf6 {[%clk 0:01:55.2]} 16. Rd2 {[%clk 0:02:34.7]} 16... Ne5
{[%clk 0:01:49]} 17. Rf1 {[%clk 0:02:31.4]} 17... Ng6 {[%clk 0:01:34.5]} 18. f4
{[%clk 0:02:28.2]} 18... Rb4 {[%clk 0:01:02.2]} 19. Kh2 {[%clk 0:02:14]} 19...
Qh4 {[%clk 0:00:43.7]} 20. Qf3 {[%clk 0:02:11.2]} 20... Ba6 {[%clk 0:00:38.3]}
21. Rff2 {[%clk 0:02:06.5]} 21... Bc8 {[%clk 0:00:37.2]} 22. a3 {[%clk
0:02:04.4]} 22... Rb8 {[%clk 0:00:35.4]} 23. Ne2 {[%clk 0:02:00.1]} 23... c5
{[%clk 0:00:30.6]} 24. Nc3 {[%clk 0:01:58.7]} 24... Bb7 {[%clk 0:00:30.1]} 25.
Bd5 {[%clk 0:01:53.6]} 25... c6 {[%clk 0:00:29.2]} 26. Bb3 {[%clk 0:01:51.6]}
26... Rbd8 {[%clk 0:00:28.4]} 27. Rde2 {[%clk 0:01:46.9]} 27... d5 {[%clk
0:00:22.6]} 28. exd5 {[%clk 0:01:44.4]} 28... cxd5 {[%clk 0:00:22.8]} 29. Bc1
{[%clk 0:01:39.5]} 29... Rxe2 {[%clk 0:00:21.3]} 30. Rxe2 {[%clk 0:01:36.8]}
30... Bd6 {[%clk 0:00:15.7]} 31. g3 {[%clk 0:01:34.3]} 31... Qf6 {[%clk
0:00:14.7]} 32. Nxd5 {[%clk 0:01:34]} 32... Bxd5 {[%clk 0:00:13.4]} 33. Bxd5
{[%clk 0:01:33.8]} 33... h5 {[%clk 0:00:11.5]} 34. h4 {[%clk 0:01:31.1]} 34...
Qd4 {[%clk 0:00:07.4]} 35. c3 {[%clk 0:01:27.8]} 35... Qf6 {[%clk 0:00:06.6]}
36. Be3 {[%clk 0:01:24.5]} 36... Ne7 {[%clk 0:00:05.6]} 37. Be4 {[%clk
0:01:21.8]} 37... g6 {[%clk 0:00:05.1]} 38. Bf2 {[%clk 0:01:21.6]} 38... Nf5
{[%clk 0:00:04.7]} 39. Rd2 {[%clk 0:01:18.8]} 39... Nh6 {[%clk 0:00:04]} 40. Kg2
{[%clk 0:01:12.1]} 40... Ng4 {[%clk 0:00:04.1]} 41. Bg1 {[%clk 0:01:11.8]} 41...
Qe7 {[%clk 0:00:04]} 42. Re2 {[%clk 0:01:10.9]} 42... Qf6 {[%clk 0:00:03.4]} 43.
Bc2 {[%clk 0:01:07]} 43... Bf8 {[%clk 0:00:03.2]} 44. Be4 {[%clk 0:01:02]} 44...
c4 {[%clk 0:00:02.3]} 45. f5 {[%clk 0:01:01.2]} 45... g5 {[%clk 0:00:01.5]} 46.
Bd4 {[%clk 0:00:59.8]} 1-0

[Event "*** Titled Tuesday Blitz"]
[Site "Chess.com"]
[Date "2021.03.02"]
[Round "4"]
[White "pedro_nascimento85"]
[Black "Piacramling"]
[Result "0-1"]
[WhiteElo "2107"]
[BlackElo "2300"]
[TimeControl "180+1"]
[EndTime "10:39:23 PST"]
[Termination "Piacramling won on time"]

1. d4 {[%clk 0:03:00.9]} 1... Nf6 {[%clk 0:02:58.5]} 2. c4 {[%clk 0:02:46.6]}
2... c5 {[%clk 0:02:58.3]} 3. d5 {[%clk 0:02:46.2]} 3... b5 {[%clk 0:02:58.2]}
4. Qc2 {[%clk 0:02:45]} 4... bxc4 {[%clk 0:02:54.8]} 5. e4 {[%clk 0:02:44.4]}
5... d6 {[%clk 0:02:54.9]} 6. Bxc4 {[%clk 0:02:43.2]} 6... g6 {[%clk 0:02:55]}
7. Nc3 {[%clk 0:02:41.2]} 7... Bg7 {[%clk 0:02:54.8]} 8. Nf3 {[%clk 0:02:37.8]}
8... O-O {[%clk 0:02:54.3]} 9. Bf4 {[%clk 0:02:37.1]} 9... Ba6 {[%clk
0:02:46.8]} 10. Nd2 {[%clk 0:02:34.2]} 10... Qb6 {[%clk 0:02:20.1]} 11. O-O
{[%clk 0:02:27]} 11... Nbd7 {[%clk 0:02:20.1]} 12. h3 {[%clk 0:02:13.7]} 12...
Rfe8 {[%clk 0:02:12.1]} 13. Na4 {[%clk 0:01:52.4]} 13... Qb7 {[%clk 0:02:08.4]}
14. Rab1 {[%clk 0:01:50.3]} 14... Nh5 {[%clk 0:02:04.4]} 15. Bh2 {[%clk
0:01:47.7]} 15... Ne5 {[%clk 0:02:04.3]} 16. Bxa6 {[%clk 0:01:31.4]} 16... Qxa6
{[%clk 0:02:03.8]} 17. Nc3 {[%clk 0:01:28.7]} 17... Qd3 {[%clk 0:01:51.7]} 18.
Qc1 {[%clk 0:01:08.7]} 18... Rab8 {[%clk 0:01:47.5]} 19. Nd1 {[%clk 0:00:58.7]}
19... Qa6 {[%clk 0:01:30.8]} 20. Nc3 {[%clk 0:00:55.9]} 20... Nd3 {[%clk
0:01:23.6]} 21. Qc2 {[%clk 0:00:52.5]} 21... Nb4 {[%clk 0:01:09.3]} 22. Qd1
{[%clk 0:00:34.7]} 22... Nxa2 {[%clk 0:01:01.4]} 23. Nxa2 {[%clk 0:00:35.6]}
23... Qxa2 {[%clk 0:01:01.1]} 24. b3 {[%clk 0:00:08.3]} 24... Bd4 {[%clk
0:00:47.4]} 25. Nf3 {[%clk 0:00:04.5]} 25... Bg7 {[%clk 0:00:44.6]} 26. Nd2
{[%clk 0:00:04]} 26... Qa6 {[%clk 0:00:34.8]} 27. f4 {[%clk 0:00:03]} 27... Qa2
{[%clk 0:00:19.2]} 28. f5 {[%clk 0:00:02.3]} 28... a5 {[%clk 0:00:13.6]} 29.
fxg6 {[%clk 0:00:02.3]} 29... hxg6 {[%clk 0:00:13]} 0-1